Cogmind - Beta 11 @@@ ROGUE MODE // 2022.04.12 @ 20:18:09 Player: whisper Result: Escaped! Performance ------------- Evolutions (9) 4500 Regions Visited (32) 6400 Robots Destroyed (199) 995 Value Destroyed (8283) 8283 Prototype IDs (52) 1040 Alien Tech Used (0) 0 Bonus (8113) 8113 TOTAL SCORE: 29331 Bonus ------- High Alert Combat Kills 163 Follower Combat Kills 1576 Entered Garrisons 800 Used RIF Installer 1500 Entered DSFs 500 Aligned with FarCom 300 Met Data Miner 300 Win 3000 Friendly Fire -26 Cogmind --------- Core Integrity 1554/1600 Matter 245/300 Energy 58/200 System Corruption 0% Temperature Warm (108) Movement Flying (5) Location To Epsilon Eridani Parts ------- > --- POWER (3) -------- Micro Fission Core Micro Fission Core > --- PROPULSION (6) --- Advanced Surge Thruster Advanced Surge Thruster Advanced Surge Thruster Advanced Surge Thruster Advanced Surge Thruster > --- UTILITY (14) ----- Advanced Heat Sink Enhanced Optical Array Advanced Terrain Scan Processor Seismic Detector Salvage Targeting Computer Advanced Target Analyzer Core Analyzer Improved Transmission Jammer Makeshift Armor Plating Hacking Suite > --- WEAPON (2) ------- (None) > --- INVENTORY (5) ---- Superbattery (1500) Disruptor Cannon Enhanced Nova Cannon Enhanced Nova Cannon Phasing Sabre Peak State ------------ > --- POWER ------------ Neutrino Core Reinforced Fission Core > --- PROPULSION ------- Improved Heavy Treads Advanced Heavy Treads Centrium Heavy Treads > --- UTILITY ---------- Advanced Thermal Generator Advanced Heat Sink Advanced Heat Sink Huge Storage Unit Advanced Terrain Scan Processor Salvage Targeting Computer Advanced Target Analyzer Core Analyzer Improved Power Shielding Makeshift Armor Plating EM Disruption Field Hardlight Generator Hacking Suite > --- WEAPON ----------- Quantum Rifle Matter Neutralizer > --- INVENTORY -------- Reinforced Fission Core Quantum Reactor Quantum Reactor Improved Treads Improved Treads Improved Treads Improved Treads Superbattery Improved Power Shielding Relay Coupler [Grunt] Improved Recalibrator Advanced Plasma Rifle Quantum Rifle Quantum Rifle Proton Cannon Coil Gun Heavy Machine Gun KE Penetrator Railgun Advanced KE Penetrator Linear Accelerator Improved Datajack Power Sword Phasing Sabre [Rating: 141] Favorites ----------- Power Improved Ion Engine Engine Improved Ion Engine Power Core Neutrino Core Reactor Antimatter Reactor Propulsion Light Treads Treads Light Treads Leg Aluminum Leg Wheel Compact Wheel Flight Unit Advanced Surge Thruster Utility Hacking Suite Device Advanced Heat Sink Storage High-capacity Storage Unit Processor Machine Analyzer Hackware Hacking Suite Protection Improved Medium Armor Plating Weapon Enhanced Autogun Energy Gun Improved Medium Laser Energy Cannon Neutron Cannon Ballistic Gun Enhanced Autogun Ballistic Cannon Assault Cannon Launcher Precision Grenade Launcher Special Weapon Improved Plasma Cutter Impact Weapon Great Maul Slashing Weapon Phasing Sabre Build | -11 -10 -10 -9 -9 -9 -8 -8 -8 -8 -8 -7 -7 -7 -7 -6 -6 -6 -6 -6 -5 -5 -4 -4 -4 -4 -4 -4 -3 -3 -2 -2 -1 ------- Run | Scr Mat Min Mat Min Exi Min Mat Gar Mat Gar Fac Low Low Dat Pro Fac Ext Cet Arc Fac DSF Fac Gar Fac Upp Upp War Pro Res Res Gar Acc Slots Evolved 18 | . . . 2 . . . 2 . . . 2 . . . . 2 . . . 2 . 2 . . . . . . 2 2 . 2 Power 2 | . . . . . . . . . . . . . . . . 1 . . . . . . . . . . . . . . . 1 Propulsion 4 | . . . 1 . . . 1 . . . . . . . . . . . . 1 . 1 . . . . . . . . . . Utility 12 | . . . 1 . . . 1 . . . 2 . . . . 1 . . . 1 . 1 . . . . . . 2 2 . 1 Weapon . | . . . . . . . . . . . . . . . . . . . . . . . . . . . . . . . . . Parts Attached 301 | 6 6 . 19 1 . 1 26 6 6 7 13 6 12 17 9 15 34 6 16 1 7 7 15 4 13 11 . 6 8 4 12 7 Power 28 | 1 . . 2 . . . 1 1 . 1 . 1 1 1 2 2 3 . 3 . . 2 . 1 1 2 . 1 . . 2 . Engine 9 | 1 . . 2 . . . 1 1 . . . . 1 1 . 1 1 . . . . . . . . . . . . . . . Core 10 | . . . . . . . . . . 1 . 1 . . . . 1 . 1 . . . . 1 . 2 . 1 . . 2 . Reactor 9 | . . . . . . . . . . . . . . . 2 1 1 . 2 . . 2 . . 1 . . . . . . . Propulsion 76 | 2 . . 5 1 . . 7 . 2 3 2 1 4 4 1 7 11 1 5 1 5 2 1 1 1 1 . 1 1 . 6 . Treads 54 | . . . 4 1 . . 4 . 2 3 1 1 4 4 . 6 6 1 3 1 5 2 1 1 1 1 . 1 1 . . . Leg 5 | 2 . . 1 . . . . . . . . . . . 1 1 . . . . . . . . . . . . . . . . Wheel 11 | . . . . . . . 3 . . . 1 . . . . . 5 . 2 . . . . . . . . . . . . . Hover . | . . . . . . . . . . . . . . . . . . . . . . . . . . . . . . . . . Flight 6 | . . . . . . . . . . . . . . . . . . . . . . . . . . . . . . . 6 . Utility 95 | 1 4 . 7 . . 1 8 1 1 2 4 1 3 3 3 4 7 4 3 . 2 2 7 2 5 5 . 3 3 2 4 3 Device 42 | . 3 . 1 . . . 4 1 1 1 1 . 1 2 2 3 1 . 1 . . 1 2 2 3 3 . 2 2 1 2 2 Storage 9 | 1 1 . 3 . . . 1 . . . . . . . . . 2 . . . . . . . . . . . . . 1 . Processor 8 | . . . . . . . 1 . . . 1 . . . . . . 1 . . . 1 . . 1 1 . . . 1 . 1 Hackware 3 | . . . . . . . . . . . 1 . . . . . 1 . . . . . 1 . . . . . . . . . Protection 33 | . . . 3 . . 1 2 . . 1 1 1 2 1 1 1 3 3 2 . 2 . 4 . 1 1 . 1 1 . 1 . Artifact . | . . . . . . . . . . . . . . . . . . . . . . . . . . . . . . . . . Weapon 102 | 2 2 . 5 . . . 10 4 3 1 7 3 4 9 3 2 13 1 5 . . 1 7 . 6 3 . 1 4 2 . 4 Energy Gun 13 | 1 2 . 2 . . . . . . . . . . . 1 . 1 . 2 . . . 1 . . . . . 2 1 . . Energy Cannon 20 | . . . 1 . . . . . . . . . . 3 1 2 4 1 . . . . 3 . 2 . . . . 1 . 2 Ballistic Gun 43 | 1 . . 2 . . . 7 2 2 1 3 2 3 5 . . 2 . 3 . . . 3 . 4 2 . 1 . . . . Ballistic Cannon 2 | . . . . . . . . . . . . . . . 1 . 1 . . . . . . . . . . . . . . . Launcher 9 | . . . . . . . . 2 . . 1 1 1 . . . 4 . . . . . . . . . . . . . . . Special Weapon 1 | . . . . . . . . . . . . . . . . . . . . . . . . . . 1 . . . . . . Impact Weapon 5 | . . . . . . . 1 . 1 . 2 . . 1 . . . . . . . . . . . . . . . . . . Slashing Weapon 9 | . . . . . . . 2 . . . 1 . . . . . 1 . . . . 1 . . . . . . 2 . . 2 Piercing Weapon . | . . . . . . . . . . . . . . . . . . . . . . . . . . . . . . . . . Special Melee Weapon . | . . . . . . . . . . . . . . . . . . . . . . . . . . . . . . . . . Unidentified Prototypes 12 | . . . 3 . . . 1 . . . 1 . . 1 . . . . 4 . . 1 . . . . . . 1 . . . Corrupted Parts 10 | . . . . . . . . . . . . . . . 4 . . . 6 . . . . . . . . . . . . . System Corruption 53 | . . . . . . . . . . . . . . . 26 . . . 27 . . . . . . . . . . . . . Parts Lost 73 | . . . . . . . 1 1 . 3 . 1 2 13 3 . 18 1 . . 1 . 8 1 10 3 . 1 2 . 1 3 Power 7 | . . . . . . . . . . . . . . 1 . . 3 . . . 1 . . 1 1 . . . . . . . Propulsion 19 | . . . . . . . 1 1 . 2 . 1 . 3 1 . 5 . . . . . 1 . 1 1 . . 1 . . 1 Utility 28 | . . . . . . . . . . 1 . . 2 3 1 . 4 1 . . . . 5 . 5 1 . 1 1 . 1 2 Weapon 19 | . . . . . . . . . . . . . . 6 1 . 6 . . . . . 2 . 3 1 . . . . . . Highest Loss Streak 16 | . . . . . . . 1 1 . 2 . 1 2 11 1 . 16 1 . . 1 . 4 1 6 2 . 1 2 . 1 3 To Critical Strikes . | . . . . . . . . . . . . . . . . . . . . . . . . . . . . . . . . . Average Slot Usage (%) 92 | . 98 100 98 100 100 100 99 96 96 100 96 92 91 77 97 100 90 95 97 94 86 80 83 80 79 83 84 84 79 84 81 81 Engine 4 | . 14 14 11 11 11 11 9 9 9 5 . . 2 4 7 1 . 6 5 . . . . . . . . . . . . . Core 2 | . . . . . . . . . . 3 7 7 4 . . . . 6 6 5 5 2 . . 5 6 10 10 9 8 8 8 Reactor 2 | . . . . . . . . . . . . . . . . 11 7 . . 5 3 4 10 6 4 3 . . . . . . Treads 19 | . . . 29 33 33 33 23 18 24 30 24 15 15 17 28 23 19 13 12 17 17 15 14 15 15 15 15 15 10 13 11 . Leg 1 | . 28 28 3 . . . . . . . . . . . . 2 . . . . . . . . . . . . . . . . Wheel 4 | . . . . . . . 12 15 9 5 2 7 7 2 . . 5 13 12 11 1 . . . . . . . . . . . Device 10 | . 12 14 12 11 11 11 14 9 9 9 7 1 2 4 8 15 8 2 3 5 5 10 8 9 11 12 10 10 14 19 19 18 Storage 7 | . 14 14 11 11 11 11 9 9 9 9 7 7 7 7 7 6 6 6 6 5 5 5 5 5 5 5 5 5 4 4 3 . Processor 10 | . . . . . . . 3 9 9 9 14 15 15 15 15 13 13 11 13 11 11 15 15 15 12 16 21 15 14 17 17 18 Hackware 4 | . . . . . . . . . . . 6 7 7 7 7 6 3 6 6 5 5 5 6 10 10 8 5 5 4 4 4 4 Protection 8 | . . . 8 11 11 11 8 9 9 9 7 13 11 2 4 3 9 14 14 11 14 10 9 5 2 1 5 9 10 8 5 4 Energy Gun 3 | . 21 28 21 . . . . . . . . . . . 1 . 2 6 2 11 11 6 3 . . . . . 1 2 3 . Energy Cannon 1 | . . . . . . . . . . . . . . 3 7 11 5 4 1 . . . 2 . . . . . . 2 2 . Ballistic Gun 8 | . 6 . . 22 22 22 14 17 15 17 13 14 14 9 2 . 2 1 9 . . . 3 10 9 10 10 10 . . . . Naked Turns . | . . . . . . . . . . . . . . . . . . . . . . . . . . . . . . . . . Heaviest Build 156 | 11 17 17 61 41 41 42 63 57 58 59 60 62 64 62 76 98 151 132 141 140 147 128 130 123 116 135 135 142 155 156 156 36 Greatest Support 225 | 20 20 20 60 60 60 60 80 32 16 82 82 28 28 88 88 112 112 20 103 20 168 215 215 220 220 225 225 225 225 225 225 34 Greatest Overweight (x) 14 | . . . 1 . . . 3 3 3 3 2 2 2 2 1 1 6 6 14 6 6 . . . . . . . . . . 1 Average Overweight (x) . | . . . . . . . . 1 3 1 . 2 1 1 . . 2 6 6 6 1 . . . . . . . . . . . Largest Inventory Capacity 25 | 8 10 10 20 15 15 15 20 20 20 20 20 20 20 20 20 20 25 25 25 25 25 25 25 25 25 25 25 25 25 25 25 5 Average Capacity 20 | 7 8 10 14 15 15 15 19 20 20 20 20 20 20 20 20 20 22 25 25 25 25 25 25 25 25 25 25 25 25 25 22 5 Most Carried 25 | 6 9 10 16 15 15 15 20 20 20 20 20 20 20 20 20 20 25 25 25 25 25 25 25 25 25 25 25 25 25 25 25 5 Average Carried 18 | 3 8 9 13 15 14 15 18 19 19 19 19 19 19 16 18 19 18 24 24 24 24 24 22 20 20 22 25 24 24 24 18 4 Final Capacity 25 | 8 10 10 15 15 15 15 20 20 20 20 20 20 20 20 20 20 25 25 25 25 25 25 25 25 25 25 25 25 25 25 5 5 Final Carried 25 | 6 9 10 15 15 15 15 20 19 20 18 20 20 20 15 18 20 25 25 25 25 25 25 20 25 17 25 25 25 25 24 5 5 Class Distribution -------------------- 55% | Scavenger-Mutant 29% | Mutant 5% | Scavenger-Skirmisher 3% | Commander-Mutant Dominant Class ---------------- Mutant | -10/Materials Mutant | -10/Mines Mutant | -9/Materials Mutant | -9/Mines Mutant | -9/Exiles Mutant | -8/Mines Scavenger-Mutant | -8/Materials Scavenger-Mutant | -8/Garrison Scavenger-Skirmisher | -8/Materials Scavenger-Mutant | -8/Garrison Scavenger-Skirmisher | -7/Factory Mutant | -7/Lower Caves Mutant | -7/Lower Caves Mutant | -7/Data Miner Scavenger-Mutant | -6/Proximity Caves Scavenger-Mutant | -6/Factory Scavenger-Mutant | -6/Extension Scavenger-Mutant | -6/Cetus Scavenger-Mutant | -6/Archives Scavenger-Mutant | -5/Factory Scavenger-Mutant | -5/DSF Scavenger-Assassin | -4/Factory Scavenger-Mutant | -4/Garrison Skirmisher | -4/Factory Scavenger-Mutant | -4/Upper Caves Scavenger-Mutant | -4/Upper Caves Scavenger-Mutant | -4/Warlord Scavenger-Mutant | -3/Proximity Caves Scavenger-Mutant | -3/Research Scavenger-Mutant | -2/Research Scavenger-Mutant | -2/Garrison Scavenger-Sprinter | -1/Access Resources | -11 -10 -10 -9 -9 -9 -8 -8 -8 -8 -8 -7 -7 -7 -7 -6 -6 -6 -6 -6 -5 -5 -4 -4 -4 -4 -4 -4 -3 -3 -2 -2 -1 ----------- Run | Scr Mat Min Mat Min Exi Min Mat Gar Mat Gar Fac Low Low Dat Pro Fac Ext Cet Arc Fac DSF Fac Gar Fac Upp Upp War Pro Res Res Gar Acc Matter Collected 6010 | 255 117 . 190 66 . 37 703 266 110 399 222 292 403 303 95 215 514 25 129 . 2 106 389 75 343 289 . 211 74 60 120 . Remotely . | . . . . . . . . . . . . . . . . . . . . . . . . . . . . . . . . . Salvage Created 9095 | . 195 . 726 146 . 37 1069 206 146 506 426 204 518 357 89 262 805 150 136 . 87 106 1114 75 775 286 . 389 165 . 120 . Parts 431 | . 14 . 30 6 . 4 55 15 12 27 18 7 21 10 1 10 35 4 7 . 2 4 51 5 41 15 . 20 6 . 11 . Haulers Intercepted 8 | . . . 3 . . . 3 . 1 . 1 . . . . . . . . . . . . . . . . . . . . . Recyclers Shooed 4 | . . . 2 . . . 1 . . . . . . . . 1 . . . . . . . . . . . . . . . . Parts Field Recycled . | . . . . . . . . . . . . . . . . . . . . . . . . . . . . . . . . . Retrieved Matter . | . . . . . . . . . . . . . . . . . . . . . . . . . . . . . . . . . Parts Self-Destructed 145 | . . . . . . . . . . . . 12 22 . 1 . . . . . . . . . 39 48 . 23 . . . . Prevented 3 | . . . . . . . . . . . . . 1 . . . . . . . . . . . 2 . . . . . . . Kills | -11 -10 -10 -9 -9 -9 -8 -8 -8 -8 -8 -7 -7 -7 -7 -6 -6 -6 -6 -6 -5 -5 -4 -4 -4 -4 -4 -4 -3 -3 -2 -2 -1 ------- Run | Scr Mat Min Mat Min Exi Min Mat Gar Mat Gar Fac Low Low Dat Pro Fac Ext Cet Arc Fac DSF Fac Gar Fac Upp Upp War Pro Res Res Gar Acc Combat Hostiles Destroyed 168 | . 8 . 10 3 . 3 15 12 1 10 4 5 11 4 2 3 14 2 2 . 1 . 20 1 19 5 . 8 2 . 3 . Melee 6 | . . . . . . . . . . . . . . . . . 4 . . . . . . . . . . . 2 . . . Guns 114 | . 8 . 9 3 . 3 14 3 1 10 4 4 9 2 . . 2 . 2 . 1 . 8 1 16 5 . 8 . . 1 . Cannons 18 | . . . . . . . . . . . . . . . 1 3 4 . . . . . 6 . 2 . . . . . 2 . AOE 23 | . . . . . . . . 9 . . . 1 2 . 1 . 3 . . . . . 6 . 1 . . . . . . . Classes Destroyed 17 | . 2 . 4 1 . . 3 . 1 . . . 2 . 1 . 1 . . . 1 . . . . . . . . . 1 . Worker 3 | . . . . . . . . . 1 . . . . . . . 1 . . . . . . . . . . . 1 . . . Builder 3 | . . . . . . . 1 . . . . . . . . . 2 . . . . . . . . . . . . . . . Hauler 8 | . . . 3 . . . 3 . 1 . 1 . . . . . . . . . . . . . . . . . . . . . Recycler 8 | . . . 1 . . . 2 . . . 2 . . . . 1 1 . . . . 1 . . . . . . . . . . Minesweeper 1 | . . . . . . . . . . . . . 1 . . . . . . . . . . . . . . . . . . . Operator 2 | . . . . . . . . . . . . . . . . . 2 . . . . . . . . . . . . . . . Watcher 6 | . . . 1 . . . 1 . 1 1 . . . . . . 2 . . . . . . . . . . . . . . . Swarmer 52 | . 6 . . . . 3 . 8 . . . 1 3 . . . 1 . . . . . 9 . 14 2 . 5 . . . . Cutter 3 | . . . . . . . . . . . . . . . . . . . . . . . . . . . . . . . 3 . Grunt 57 | . 2 . 6 2 . . 7 2 1 8 3 3 3 . . 3 10 . . . . . 5 . 1 1 . . . . . . Brawler 8 | . . . . 1 . . 1 . . 1 . . . . . . . . . . . . 2 . 2 1 . . . . . . Duelist 7 | . . . . . . . 2 . . 1 . . 2 . . . . . . . . . . . 1 1 . . . . . . Protector 1 | . . . . . . . . . . . . . 1 . . . . . . . . . . . . . . . . . . . Sentry 21 | . . . 4 . . . 4 1 . . 1 1 1 . 1 . 2 . 2 . . . 1 1 1 . . 1 . . . . Specialist 1 | . . . . . . . . . . . . . . . . . . . . . 1 . . . . . . . . . . . Hunter 10 | . . . . . . . 1 1 . . . . 1 . . . . . . . . . 3 . . . . 2 2 . . . Behemoth 2 | . . . . . . . . . . . . . . . 1 . 1 . . . . . . . . . . . . . . . Cetus Guard 2 | . . . . . . . . . . . . . . . . . . 2 . . . . . . . . . . . . . . Enhanced Grunt 4 | . . . . . . . . . . . . . . 4 . . . . . . . . . . . . . . . . . . Decomposer 1 | . . . . . . . . . . . . . 1 . . . . . . . . . . . . . . . . . . . Best Kill Streak 9 | . 5 . 4 3 . 3 4 7 3 4 3 3 9 2 1 3 6 2 2 . 1 1 5 1 8 2 . 4 2 . 3 . Combat Bots Only 8 | . 5 . 4 3 . 3 3 7 1 3 1 3 6 3 1 3 4 2 2 . 1 . 5 1 8 2 . 4 2 . 3 . Max Kills in Single Turn 4 | . 1 . 1 2 . 2 1 4 2 1 1 1 3 1 1 1 2 1 1 . 1 1 4 1 2 1 . 1 1 . 1 . Gunslinging 1 | . . . . 1 . 1 . 1 . . . . . . . . . . . . . . . . 1 . . . . . . . Exploded 4 | . . . . . . . . 4 . . . 1 2 . 1 . 2 . . . . . 4 . 1 . . . . . . . Melee 1 | . . . . . . . . . . . . . . . . . 1 . . . . . . . . . . . 1 . . . Uniques/NPCs Destroyed . | . . . . . . . . . . . . . . . . . . . . . . . . . . . . . . . . . Combat | -11 -10 -10 -9 -9 -9 -8 -8 -8 -8 -8 -7 -7 -7 -7 -6 -6 -6 -6 -6 -5 -5 -4 -4 -4 -4 -4 -4 -3 -3 -2 -2 -1 -------- Run | Scr Mat Min Mat Min Exi Min Mat Gar Mat Gar Fac Low Low Dat Pro Fac Ext Cet Arc Fac DSF Fac Gar Fac Upp Upp War Pro Res Res Gar Acc Damage Taken 22203 | . 282 . 376 72 . 48 796 341 34 515 303 292 1224 1864 886 277 3918 89 117 . 1522 . 3492 325 2367 897 . 847 571 . 322 426 Core 2429 | . 64 . 105 . . 8 88 53 . 65 32 5 197 250 67 61 733 . 25 . 81 . 98 29 194 57 . 71 100 . . 46 Absorbed by Shields 478 | . . . . . . . . 33 . . . . . . . . 60 12 . . . . . . . 112 . 104 144 . 13 . Reduced by Siege Mode 561 | . . . . . . . . . . . . . . . . . . . . . . . 235 7 179 44 . 69 . . 27 . Redirected to Shielding 101 | . . . . . . . . . . . . . . . . . . . . . . . . . . . . . 77 . 24 . Regen/Repaired (Parts) 126 | . 10 . . . . . 116 . . . . . . . . . . . . . . . . . . . . . . . . . Core Remaining (%) 70 | 100 . 74 . . . 71 . . . 62 . . . . 21 . . . 3 . 91 . . . . . . 60 92 . 100 97 Volleys Fired 587 | . 26 . 50 8 . 4 61 24 10 39 19 20 40 36 10 10 56 4 11 . 8 3 50 7 35 23 . 20 3 . 4 6 Largest 2 | . 2 . 2 2 . 2 2 2 2 2 2 2 2 2 2 2 2 2 2 . 2 1 2 2 2 2 . 2 2 . 2 1 Hottest 199 | . 90 . 124 46 . 46 50 50 50 50 50 50 50 138 134 180 155 144 144 . 160 80 160 70 116 66 . 66 63 . 199 120 Shots Fired 1117 | . 52 . 97 16 . 8 122 41 20 78 38 38 78 67 18 20 97 8 17 . 16 3 95 14 69 46 . 39 6 . 8 6 Gun 940 | . 52 . 96 16 . 8 122 34 20 78 38 36 76 46 . . 43 4 12 . 16 3 69 14 62 46 . 39 6 . 4 . Cannon 160 | . . . 1 . . . . . . . . . . 21 18 20 48 4 5 . . . 26 . 7 . . . . . 4 6 Launcher 17 | . . . . . . . . 7 . . . 2 2 . . . 6 . . . . . . . . . . . . . . . Special . | . . . . . . . . . . . . . . . . . . . . . . . . . . . . . . . . . Kinetic 737 | . 19 . . 16 . 8 122 34 20 78 38 36 76 46 10 6 26 . 7 . . . 28 14 62 46 . 39 6 . . . Thermal 297 | . 33 . 97 . . . . . . . . . . . 8 14 65 4 5 . 16 3 41 . . . . . . . 8 3 Explosive 17 | . . . . . . . . 7 . . . 2 2 . . . 6 . . . . . . . . . . . . . . . Electromagnetic 66 | . . . . . . . . . . . . . . 21 . . . 4 5 . . . 26 . 7 . . . . . . 3 Robot Hit Streak 23 | . 7 . 12 14 . 3 11 7 4 20 13 21 8 8 19 8 12 7 12 . 6 5 23 7 21 23 . 6 2 . 3 . Robot Miss Streak 8 | . 2 . 4 1 . 3 3 3 3 2 1 1 3 2 1 1 8 1 2 . 1 . 2 3 2 3 . 3 2 . 3 . Penetration Max 1 | . . . . . . . . . . . . . . . . . . . . . . . . . 1 1 . 1 . . . . Secondary Targets 18 | . . . 1 1 . 1 . 1 . 1 . 1 1 . . . 1 . . . . . . . 8 . . 2 . . . . Max Gunslinging Chain 1 | . . . 1 1 . 1 . 1 . 1 . 1 1 . . . 1 . . . . . . . 1 . . 1 . . . . Shots Hit Robots 829 | . 30 . 57 14 . 4 98 23 11 59 30 35 60 48 16 15 78 7 14 . 12 4 76 9 53 31 . 29 12 . 4 . Core Hits 389 | . 13 . 21 4 . 3 37 19 5 28 13 8 25 20 4 5 55 2 7 . 3 2 39 4 29 16 . 17 5 . 5 . Critical Kills 5 | . . . . . . . 1 . 1 . . . 1 . . . . . . . . . 1 . . . . 1 . . . . Critical Parts Destroyed 12 | . . . . 1 . . 2 1 . . . . . 1 . . . . . . . . 2 1 1 1 . 2 . . . . Critical Strikes 26 | . . . 6 1 . . 3 1 1 . . . 1 1 1 . . . . . . . 3 1 1 1 . 3 2 . . . Burn 6 | . . . 6 . . . . . . . . . . . . . . . . . . . . . . . . . . . . . Destroy 14 | . . . . 1 . . . 1 1 . . . 1 1 . . . . . . . . 3 1 1 1 . 3 . . . . Blast 1 | . . . . . . . . . . . . . . . 1 . . . . . . . . . . . . . . . . . Smash 3 | . . . . . . . 3 . . . . . . . . . . . . . . . . . . . . . . . . . Sever 2 | . . . . . . . . . . . . . . . . . . . . . . . . . . . . . 2 . . . Melee Attacks 84 | . . . . . . . 17 . 1 . 5 . . 1 . . 42 . . . . 3 . . . . . . 14 . . 1 Impact 19 | . . . . . . . 12 . 1 . 5 . . 1 . . . . . . . . . . . . . . . . . . Slashing 65 | . . . . . . . 5 . . . . . . . . . 42 . . . . 3 . . . . . . 14 . . 1 Piercing . | . . . . . . . . . . . . . . . . . . . . . . . . . . . . . . . . . Sneak Attacks 8 | . . . . . . . 4 . . . . . . 1 . . 1 . . . . 1 . . . . . . 1 . . . Combat Hostiles 1 | . . . . . . . . . . . . . . . . . . . . . . . . . . . . . 1 . . . Follow-up Attacks . | . . . . . . . . . . . . . . . . . . . . . . . . . . . . . . . . . Damage Inflicted 20635 | . 353 . 910 220 . 63 1922 913 190 1001 513 715 1312 1004 618 612 2924 183 330 . 381 159 2669 236 1367 665 . 714 477 . 184 . Guns 12883 | . 349 . 888 205 . 63 1425 283 190 1001 513 551 949 625 . . 653 75 252 . 376 74 1472 236 1187 665 . 714 22 . 115 . Cannons 3837 | . . . 20 . . . . . . . . . . 267 528 612 1347 108 78 . . . 691 . 117 . . . . . 69 . Explosions 2325 | . . . . . . . . 630 . . . 164 363 . 90 . 509 . . . . . 506 . 63 . . . . . . . Melee 1542 | . . . . . . . 497 . . . . . . 112 . . 396 . . . . 85 . . . . . . 452 . . . Ramming 48 | . 4 . 2 15 . . . . . . . . . . . . 19 . . . 5 . . . . . . . 3 . . . Kinetic 10161 | . 107 . . 205 . 63 1425 283 190 1001 513 551 949 625 179 69 498 . 154 . . . 525 236 1187 665 . 714 22 . . . Thermal 5957 | . 242 . 908 . . . . . . . . . . . 439 543 1502 75 98 . 376 74 1453 . 63 . . . . . 184 . Explosive 1666 | . . . . . . . . 630 . . . 164 363 . . . 509 . . . . . . . . . . . . . . . Electromagnetic 1261 | . . . . . . . . . . . . . . 267 . . . 108 78 . . . 691 . 117 . . . . . . . Impact 485 | . . . . . . . 373 . . . . . . 112 . . . . . . . . . . . . . . . . . . Slashing 1057 | . . . . . . . 124 . . . . . . . . . 396 . . . . 85 . . . . . . 452 . . . Piercing . | . . . . . . . . . . . . . . . . . . . . . . . . . . . . . . . . . Highest Corruption 27 | . . . . . . . . . . . . . . . 26 . . . 27 . . . . . 2 . . 2 . . . . Average Corruption 2 | . . . . . . . . . . . . . . . 19 . . . 16 . . . . . 2 . . 2 . . . . Corruption Purged . | . . . . . . . . . . . . . . . . . . . . . . . . . . . . . . . . . Corruption Blocked . | . . . . . . . . . . . . . . . . . . . . . . . . . . . . . . . . . Effects 10 | . . . . . . . . . . . . . . . 1 . . . 2 . . . . . 2 . . 5 . . . . Message Errors 1 | . . . . . . . . . . . . . . . . . . . . . . . . . . . . 1 . . . . Matter Fused 2 | . . . . . . . . . . . . . . . 1 . . . 1 . . . . . . . . . . . . . Heat Flow Errors 2 | . . . . . . . . . . . . . . . . . . . . . . . . . 1 . . 1 . . . . Energy Discharges 2 | . . . . . . . . . . . . . . . . . . . 1 . . . . . 1 . . . . . . . Data Loss (minor) 2 | . . . . . . . . . . . . . . . . . . . . . . . . . . . . 2 . . . . Weapon Failures 1 | . . . . . . . . . . . . . . . . . . . . . . . . . . . . 1 . . . . Overload Shots . | . . . . . . . . . . . . . . . . . . . . . . . . . . . . . . . . . Overflow Damage 395 | . . . . . . . 98 11 . . . 43 18 102 . . 59 . . . . 15 . . 4 . . . 45 . . . Projectiles 25 | . . . . . . . . . . . . . . . . . 21 . . . . . . . 4 . . . . . . . Explosions 110 | . . . . . . . . 11 . . . 43 18 . . . 38 . . . . . . . . . . . . . . . Melee 260 | . . . . . . . 98 . . . . . . 102 . . . . . . . 15 . . . . . . 45 . . . Knockbacks 2 | . . . . . . . . . . . . . . 1 . 1 . . . . . . . . . . . . . . . . Impact 1 | . . . . . . . . . . . . . . 1 . . . . . . . . . . . . . . . . . . Kinetic 1 | . . . . . . . . . . . . . . . . 1 . . . . . . . . . . . . . . . . Secondary . | . . . . . . . . . . . . . . . . . . . . . . . . . . . . . . . . . Self-Inflicted Damage 179 | . . . . . . . . . . . . . . . . . 32 . . . . . 147 . . . . . . . . . Shots 3 | . . . . . . . . . . . . . . . . . 1 . . . . . 2 . . . . . . . . . Rammed 6 | . . . 1 2 . . . . . . . . . . . . 1 . . . 2 . . . . . . . . . . . Targets Rammed 9 | . 1 . 1 2 . . . . . . . . . . . . 2 . . . 2 . . . . . . . 1 . . . Kicked 1 | . 1 . . . . . . . . . . . . . . . . . . . . . . . . . . . . . . . Crushed 2 | . . . . . . . . . . . . . . . . . 1 . . . . . . . . . . . 1 . . . Highest Temperature 321 | . 75 . 114 . . . 18 . . . 63 59 158 63 9 168 321 198 313 . 45 60 120 . 234 . . 92 . . 94 248 Average Temperature 70 | . 43 . 33 . . . 13 . . . 21 30 62 18 6 73 106 108 185 . 20 28 33 . 113 . . 34 . . 26 89 Received Heat Transfer 4196 | . 75 . 138 12 . . 351 81 18 234 141 159 297 . 72 130 1204 . 9 . 540 . 350 18 249 104 . 14 . . . . Effects 1 | . . . . . . . . . . . . . . . . . 1 . . . . . . . . . . . . . . . Energy Bleed 1 | . . . . . . . . . . . . . . . . . 1 . . . . . . . . . . . . . . . Siege Activations 18 | . . . . . . . . . . . . . . . . . . . . . . . 7 1 3 2 . 4 . . 1 . Total Turns 342 | . . . . . . . . . . . . . . . . . . . . . . . 143 8 79 31 . 43 . . 38 . Longest Duration 53 | . . . . . . . . . . . . . . . . . . . . . . . 47 8 53 24 . 17 . . 38 . Robots Corrupted 4 | . . . . . . . . . . . . . . 2 . . . 2 . . . . . . . . . . . . . . Combat Hostiles 4 | . . . . . . . . . . . . . . 2 . . . 2 . . . . . . . . . . . . . . Parts Fried 11 | . . . . . . . 2 . . . . . . 4 . . . 2 . . . . 2 . 1 . . . . . . . Impact Corruptions 5 | . . . . . . . 4 . . . . . . 1 . . . . . . . . . . . . . . . . . . Robots Melted 2 | . . . 1 . . . . . . . . . . . . . 1 . . . . . . . . . . . . . . . Combat Hostiles 2 | . . . 1 . . . . . . . . . . . . . 1 . . . . . . . . . . . . . . . Parts Melted 14 | . . . 10 1 . . . . . . . . . . . . . . . . . . 3 . . . . . . . . . Heat Transferred 6840 | . 585 . 2493 . . . . . . . . . . . 100 74 1054 148 185 . 481 111 1337 . 50 . . . . . 222 . Parts Sabotaged . | . . . . . . . . . . . . . . . . . . . . . . . . . . . . . . . . . Parts Stolen . | . . . . . . . . . . . . . . . . . . . . . . . . . . . . . . . . . Parts Stripped . | . . . . . . . . . . . . . . . . . . . . . . . . . . . . . . . . . Power Chain Reactions 6 | . . . . . . . . . . . . . . . 2 . . . . . . . 3 . 1 . . . . . . . Missiles Intercepted . | . . . . . . . . . . . . . . . . . . . . . . . . . . . . . . . . . Alert | -11 -10 -10 -9 -9 -9 -8 -8 -8 -8 -8 -7 -7 -7 -7 -6 -6 -6 -6 -6 -5 -5 -4 -4 -4 -4 -4 -4 -3 -3 -2 -2 -1 ------- Run | Scr Mat Min Mat Min Exi Min Mat Gar Mat Gar Fac Low Low Dat Pro Fac Ext Cet Arc Fac DSF Fac Gar Fac Upp Upp War Pro Res Res Gar Acc Peak Influence 644 | . 237 25 283 167 . 70 301 644 370 440 234 . . . . 108 439 256 142 49 76 48 556 340 . . . . 52 9 101 76 Initial 313 | . . 25 9 97 . . 27 195 313 240 231 . . . . 31 2 210 102 49 34 39 33 291 . . . . . 9 6 60 Average 176 | . 111 25 149 160 . 27 109 508 353 355 156 . . . . 72 188 242 132 49 47 41 320 304 . . . . 28 9 34 60 Maximum Alert Level 2 | . 1 . 1 . . . 1 2 1 2 1 . . . . . 2 1 . . . . 2 1 . . . . . . . . Low Security (%) 62 | 100 81 100 67 100 . 100 86 10 . . 53 . . . . 100 54 4 100 100 100 100 24 . . . . . 100 100 100 100 Level 1 26 | . 18 . 32 . . . 13 3 100 60 46 . . . . . 34 95 . . . . 28 100 . . . . . . . . Level 2 11 | . . . . . . . . 85 . 39 . . . . . . 11 . . . . . 47 . . . . . . . . . Level 3 . | . . . . . . . . . . . . . . . . . . . . . . . . . . . . . . . . . Level 4 . | . . . . . . . . . . . . . . . . . . . . . . . . . . . . . . . . . Level 5 . | . . . . . . . . . . . . . . . . . . . . . . . . . . . . . . . . . High Security . | . . . . . . . . . . . . . . . . . . . . . . . . . . . . . . . . . Max Security . | . . . . . . . . . . . . . . . . . . . . . . . . . . . . . . . . . Squads Dispatched 15 | . 1 . 2 . . . . . 1 . 1 . 1 . . 1 3 . . . 1 . . . . 1 . . 3 . . . Investigation 2 | . . . . . . . . . 1 . . . . . . . . . . . . . . . . . . . 1 . . . Extermination 3 | . . . . . . . . . . . 1 . . . . 1 . . . . . . . . . . . . 1 . . . Reinforcement 8 | . 1 . 2 . . . . . . . . . . . . . 3 . . . 1 . . . . . . . 1 . . . Assault 2 | . . . . . . . . . . . . . 1 . . . . . . . . . . . . 1 . . . . . . Garrison . | . . . . . . . . . . . . . . . . . . . . . . . . . . . . . . . . . Intercept . | . . . . . . . . . . . . . . . . . . . . . . . . . . . . . . . . . Searches Triggered . | . . . . . . . . . . . . . . . . . . . . . . . . . . . . . . . . . Construction Impeded 1 | . . . . . . . . . . . . . . . . . 1 . . . . . . . . . . . . . . . Haulers Reinforced . | . . . . . . . . . . . . . . . . . . . . . . . . . . . . . . . . . Active Scanning Responses . | . . . . . . . . . . . . . . . . . . . . . . . . . . . . . . . . . Cargo Convoy Interrupts . | . . . . . . . . . . . . . . . . . . . . . . . . . . . . . . . . . Stealth | -11 -10 -10 -9 -9 -9 -8 -8 -8 -8 -8 -7 -7 -7 -7 -6 -6 -6 -6 -6 -5 -5 -4 -4 -4 -4 -4 -4 -3 -3 -2 -2 -1 --------- Run | Scr Mat Min Mat Min Exi Min Mat Gar Mat Gar Fac Low Low Dat Pro Fac Ext Cet Arc Fac DSF Fac Gar Fac Upp Upp War Pro Res Res Gar Acc Distress Signals 12 | . . . 4 . . . 3 . 1 . 1 . . . . . 2 1 . . . . . . . . . . . . . . Communications Jammed . | . . . . . . . . . . . . . . . . . . . . . . . . . . . . . . . . . Distress Signals . | . . . . . . . . . . . . . . . . . . . . . . . . . . . . . . . . . Times Spotted 257 | . 12 . 16 3 . 3 26 11 2 11 6 5 14 5 2 3 39 4 3 . 10 . 21 2 19 16 . 11 4 . 7 2 Peak Tracking Total 9 | . 4 . 4 3 . 3 4 9 2 3 2 3 7 3 1 3 7 5 1 . 7 . 6 1 7 7 . 4 2 . 5 2 Tactical Retreats 14 | . 1 . 1 . . . 1 1 . . . . . . . . 3 . . . 2 . 1 . . 1 . . 1 . 2 . Traps | -11 -10 -10 -9 -9 -9 -8 -8 -8 -8 -8 -7 -7 -7 -7 -6 -6 -6 -6 -6 -5 -5 -4 -4 -4 -4 -4 -4 -3 -3 -2 -2 -1 ------- Run | Scr Mat Min Mat Min Exi Min Mat Gar Mat Gar Fac Low Low Dat Pro Fac Ext Cet Arc Fac DSF Fac Gar Fac Upp Upp War Pro Res Res Gar Acc Traps Triggered 22 | . . . . . . . . 8 1 4 1 . . . . . 3 . . . 1 . . 1 . . . . 1 . 1 1 Indirectly . | . . . . . . . . . . . . . . . . . . . . . . . . . . . . . . . . . Trap Hack Attempts . | . . . . . . . . . . . . . . . . . . . . . . . . . . . . . . . . . Triggered . | . . . . . . . . . . . . . . . . . . . . . . . . . . . . . . . . . Disarmed . | . . . . . . . . . . . . . . . . . . . . . . . . . . . . . . . . . Reprogrammed . | . . . . . . . . . . . . . . . . . . . . . . . . . . . . . . . . . Reused . | . . . . . . . . . . . . . . . . . . . . . . . . . . . . . . . . . Traps Extracted . | . . . . . . . . . . . . . . . . . . . . . . . . . . . . . . . . . Installed . | . . . . . . . . . . . . . . . . . . . . . . . . . . . . . . . . . Triggered 1 | . . . . . . . . . . . . . 1 . . . . . . . . . . . . . . . . . . . Machines | -11 -10 -10 -9 -9 -9 -8 -8 -8 -8 -8 -7 -7 -7 -7 -6 -6 -6 -6 -6 -5 -5 -4 -4 -4 -4 -4 -4 -3 -3 -2 -2 -1 ---------- Run | Scr Mat Min Mat Min Exi Min Mat Gar Mat Gar Fac Low Low Dat Pro Fac Ext Cet Arc Fac DSF Fac Gar Fac Upp Upp War Pro Res Res Gar Acc Machines Disabled 9 | . . . 1 . . . . 1 . . . . . 1 . . 1 . . . . . 4 . . . . . . . . 1 Max in Single Turn 1 | . . . 1 . . . . 1 . . . . . 1 . . . . . . . . 1 . . . . . . . . 1 Garrison Access 1 | . . . . . . . . . . . . . . . . . . . . . . . . 1 . . . . . . . . Garrison Relay 1 | . . . . . . . . . . . . . . . . . . . . . . . 1 . . . . . . . . . Machines Sabotaged . | . . . . . . . . . . . . . . . . . . . . . . . . . . . . . . . . . Garrisons Compromised . | . . . . . . . . . . . . . . . . . . . . . . . . . . . . . . . . . Overloaded Fab Kills . | . . . . . . . . . . . . . . . . . . . . . . . . . . . . . . . . . Hacking | -11 -10 -10 -9 -9 -9 -8 -8 -8 -8 -8 -7 -7 -7 -7 -6 -6 -6 -6 -6 -5 -5 -4 -4 -4 -4 -4 -4 -3 -3 -2 -2 -1 --------- Run | Scr Mat Min Mat Min Exi Min Mat Gar Mat Gar Fac Low Low Dat Pro Fac Ext Cet Arc Fac DSF Fac Gar Fac Upp Upp War Pro Res Res Gar Acc Machines Accessed 53 | . 2 . 3 . 3 . 12 . 4 . 6 . 1 4 . 2 6 1 . 1 . 1 . 1 . 3 . . 1 1 . 1 Terminals 33 | . 1 . 3 . . . 10 . 3 . 5 . . . . 2 6 1 . 1 . . . . . . . . . . . 1 Fabricators . | . . . . . . . . . . . . . . . . . . . . . . . . . . . . . . . . . Repair Stations 3 | . 1 . . . . . 1 . . . . . . . . . . . . . . . . . . . . . 1 . . . Recycling Units . | . . . . . . . . . . . . . . . . . . . . . . . . . . . . . . . . . Scanalyzers 1 | . . . . . . . . . . . 1 . . . . . . . . . . . . . . . . . . . . . Garrison Access 5 | . . . . . . . 1 . 1 . . . . . . . . . . . . 1 . 1 . . . . . 1 . . Total Hacks 142 | . 6 . 10 . 4 . 31 . 12 . 13 . 1 28 . 4 13 2 . 1 . 1 . 1 . 10 . . 3 1 . 1 Successful 91 | . 3 . 6 . 4 . 17 . 4 . 6 . 1 28 . 3 4 . . 1 . 1 . 1 . 10 . . 1 1 . . Failed 51 | . 3 . 4 . . . 14 . 8 . 7 . . . . 1 9 2 . . . . . . . . . . 2 . . 1 Catastrophic 10 | . . . . . . . 6 . 2 . . . . . . . 1 . . . . . . . . . . . 1 . . . Database Lockouts . | . . . . . . . . . . . . . . . . . . . . . . . . . . . . . . . . . Manual 40 | . . . 7 . 1 . 16 . 8 . 5 . . . . 1 1 1 . . . . . . . . . . . . . . Terminals 80 | . 4 . 10 . . . 26 . 10 . 9 . . . . 4 13 2 . 1 . . . . . . . . . . . 1 Fabricators . | . . . . . . . . . . . . . . . . . . . . . . . . . . . . . . . . . Repair Stations 9 | . 2 . . . . . 4 . . . . . . . . . . . . . . . . . . . . . 3 . . . Recycling Units . | . . . . . . . . . . . . . . . . . . . . . . . . . . . . . . . . . Scanalyzers 4 | . . . . . . . . . . . 4 . . . . . . . . . . . . . . . . . . . . . Garrison Access 6 | . . . . . . . 1 . 2 . . . . . . . . . . . . 1 . 1 . . . . . 1 . . Terminal Hacks 66 | . 1 . 4 . 4 . 9 . . . 3 . 1 28 . 2 3 . . 1 . . . . . 10 . . . . . . Record 22 | . . . . . 3 . . . . . . . . 11 . . . . . . . . . . . 8 . . . . . . Part Schematic 10 | . . . . . . . . . . . . . . 10 . . . . . . . . . . . . . . . . . . Robot Schematic 4 | . . . . . . . . . . . . . . 4 . . . . . . . . . . . . . . . . . . Robot Analysis 1 | . 1 . . . . . . . . . . . . . . . . . . . . . . . . . . . . . . . Prototype ID Bank 5 | . . . . . . . 1 . . . . . . 3 . 1 . . . . . . . . . . . . . . . . Open Door 6 | . . . . . . . . . . . . . 1 . . 1 2 . . . . . . . . 2 . . . . . . Open DSF 2 | . . . . . . . . . . . 1 . . . . . . . . 1 . . . . . . . . . . . . Branch Access Points 2 | . . . 1 . . . . . . . 1 . . . . . . . . . . . . . . . . . . . . . Terminal Index 2 | . . . 1 . . . 1 . . . . . . . . . . . . . . . . . . . . . . . . . Alert Level 1 | . . . . . . . 1 . . . . . . . . . . . . . . . . . . . . . . . . . Locate Traps 3 | . . . 1 . . . 1 . . . 1 . . . . . . . . . . . . . . . . . . . . . Recall Reinforcements 1 | . . . 1 . . . . . . . . . . . . . . . . . . . . . . . . . . . . . Zone Layout 6 | . . . . . . . 5 . . . . . . . . . 1 . . . . . . . . . . . . . . . EX-Prototype ID Bank 1 | . . . . . 1 . . . . . . . . . . . . . . . . . . . . . . . . . . . Fabricator Hacks . | . . . . . . . . . . . . . . . . . . . . . . . . . . . . . . . . . Repair Station Hacks 5 | . 2 . . . . . 2 . . . . . . . . . . . . . . . . . . . . . 1 . . . Scan Component 3 | . 1 . . . . . 1 . . . . . . . . . . . . . . . . . . . . . 1 . . . Repair 2 | . 1 . . . . . 1 . . . . . . . . . . . . . . . . . . . . . . . . . Recycling Unit Hacks . | . . . . . . . . . . . . . . . . . . . . . . . . . . . . . . . . . Scanalyzer 2 | . . . . . . . . . . . 2 . . . . . . . . . . . . . . . . . . . . . Insert Component 2 | . . . . . . . . . . . 2 . . . . . . . . . . . . . . . . . . . . . Garrison Access Hacks 6 | . . . . . . . 1 . 2 . . . . . . . . . . . . 1 . 1 . . . . . 1 . . Unlock Access 4 | . . . . . . . 1 . 1 . . . . . . . . . . . . 1 . . . . . . . 1 . . Seal Access 1 | . . . . . . . . . . . . . . . . . . . . . . . . 1 . . . . . . . . Coupler Status 1 | . . . . . . . . . 1 . . . . . . . . . . . . . . . . . . . . . . . Unauthorized Hacks 12 | . . . 2 . . . 5 . 2 . 1 . . . . 1 1 . . . . . . . . . . . . . . . Terminals 12 | . . . 2 . . . 5 . 2 . 1 . . . . 1 1 . . . . . . . . . . . . . . . Assimilate 1 | . . . . . . . 1 . . . . . . . . . . . . . . . . . . . . . . . . . Botnet 8 | . . . 1 . . . 3 . 2 . 1 . . . . . 1 . . . . . . . . . . . . . . . Operators 3 | . . . 1 . . . 1 . . . . . . . . 1 . . . . . . . . . . . . . . . . Fabricators . | . . . . . . . . . . . . . . . . . . . . . . . . . . . . . . . . . Repair Stations . | . . . . . . . . . . . . . . . . . . . . . . . . . . . . . . . . . Recycling Units . | . . . . . . . . . . . . . . . . . . . . . . . . . . . . . . . . . Scanalyzers . | . . . . . . . . . . . . . . . . . . . . . . . . . . . . . . . . . Garrison Access . | . . . . . . . . . . . . . . . . . . . . . . . . . . . . . . . . . Data Cores Recovered . | . . . . . . . . . . . . . . . . . . . . . . . . . . . . . . . . . Used . | . . . . . . . . . . . . . . . . . . . . . . . . . . . . . . . . . Hacking Detections 31 | . 1 . 3 . . . 9 . 3 . 5 . . . . 1 5 1 . . . . . . . . . . 1 1 . 1 Full Trace Events 1 | . . . . . . . . . . . . . . . . . . . . . . . . . . . . . 1 . . . Feedback Events . | . . . . . . . . . . . . . . . . . . . . . . . . . . . . . . . . . Feedback Blocked . | . . . . . . . . . . . . . . . . . . . . . . . . . . . . . . . . . Robot Schematics Acquired 4 | . . . . . . . . . . . . . . 4 . . . . . . . . . . . . . . . . . . Robots Built . | . . . . . . . . . . . . . . . . . . . . . . . . . . . . . . . . . Authchips . | . . . . . . . . . . . . . . . . . . . . . . . . . . . . . . . . . Time . | . . . . . . . . . . . . . . . . . . . . . . . . . . . . . . . . . Total Robot Build Rating . | . . . . . . . . . . . . . . . . . . . . . . . . . . . . . . . . . Part Schematics Acquired 10 | . . . . . . . . . . . . . . 10 . . . . . . . . . . . . . . . . . . Parts Built . | . . . . . . . . . . . . . . . . . . . . . . . . . . . . . . . . . Authchips . | . . . . . . . . . . . . . . . . . . . . . . . . . . . . . . . . . Time . | . . . . . . . . . . . . . . . . . . . . . . . . . . . . . . . . . Total Part Build Rating . | . . . . . . . . . . . . . . . . . . . . . . . . . . . . . . . . . Parts Repaired 2 | . 1 . . . . . 1 . . . . . . . . . . . . . . . . . . . . . . . . . Time 64 | . 26 . . . . . 38 . . . . . . . . . . . . . . . . . . . . . . . . . Parts Recycled . | . . . . . . . . . . . . . . . . . . . . . . . . . . . . . . . . . Recycled Matter . | . . . . . . . . . . . . . . . . . . . . . . . . . . . . . . . . . Retrieved Matter . | . . . . . . . . . . . . . . . . . . . . . . . . . . . . . . . . . Retrieved Components . | . . . . . . . . . . . . . . . . . . . . . . . . . . . . . . . . . Parts Scanalyzed . | . . . . . . . . . . . . . . . . . . . . . . . . . . . . . . . . . Part Schematics Acquired . | . . . . . . . . . . . . . . . . . . . . . . . . . . . . . . . . . Parts Damaged . | . . . . . . . . . . . . . . . . . . . . . . . . . . . . . . . . . Bothacking | -11 -10 -10 -9 -9 -9 -8 -8 -8 -8 -8 -7 -7 -7 -7 -6 -6 -6 -6 -6 -5 -5 -4 -4 -4 -4 -4 -4 -3 -3 -2 -2 -1 ------------ Run | Scr Mat Min Mat Min Exi Min Mat Gar Mat Gar Fac Low Low Dat Pro Fac Ext Cet Arc Fac DSF Fac Gar Fac Upp Upp War Pro Res Res Gar Acc Used RIF Installer 3 | . . . . . . . . 1 . 1 . . . . . . . . . . . . 1 . . . . . . . . . Hotswap 1 | . . . . . . . . . . 1 . . . . . . . . . . . . . . . . . . . . . . Threat Obfuscator 1 | . . . . . . . . . . . . . . . . . . . . . . . 1 . . . . . . . . . Robots Hacked . | . . . . . . . . . . . . . . . . . . . . . . . . . . . . . . . . . Non-combat . | . . . . . . . . . . . . . . . . . . . . . . . . . . . . . . . . . Combat . | . . . . . . . . . . . . . . . . . . . . . . . . . . . . . . . . . Robot Hacks Applied . | . . . . . . . . . . . . . . . . . . . . . . . . . . . . . . . . . Relay Couplers Released 5 | . . . . . . . . . . . . . . . . . . . . . . . 5 . . . . . . . . . Machine Destruction 5 | . . . . . . . . . . . . . . . . . . . . . . . 5 . . . . . . . . . Attached 1 | . . . . . . . . . . . . . . . . . . . . . . . 1 . . . . . . . . . Fabnet Peak Effective % . | . . . . . . . . . . . . . . . . . . . . . . . . . . . . . . . . . Robots Rewired 25 | . . . . . . . . . . . . . 2 . . . 19 . . . . . . . 2 2 . . . . . . Allies Hacked . | . . . . . . . . . . . . . . . . . . . . . . . . . . . . . . . . . Hacks Repelled . | . . . . . . . . . . . . . . . . . . . . . . . . . . . . . . . . . Allies | -11 -10 -10 -9 -9 -9 -8 -8 -8 -8 -8 -7 -7 -7 -7 -6 -6 -6 -6 -6 -5 -5 -4 -4 -4 -4 -4 -4 -3 -3 -2 -2 -1 -------- Run | Scr Mat Min Mat Min Exi Min Mat Gar Mat Gar Fac Low Low Dat Pro Fac Ext Cet Arc Fac DSF Fac Gar Fac Upp Upp War Pro Res Res Gar Acc Total Allies 36 | . . . . 1 . . 1 . . . . . 2 . . . 22 3 . . . . . . 2 5 . . . . . . Largest Group 11 | . . . . 1 . . 1 . . . . . 2 2 . . 11 7 4 . . . . . 2 5 2 1 . . . . Highest-Rated Group 482 | . . . . 31 . . 10 . . . . . 64 64 . . 316 482 290 . . . . . 79 217 98 49 . . . . Highest-Rated Ally 159 | . . . . 31 . . 10 . . . . . 32 32 . . 159 159 150 . . . . . 49 49 49 49 . . . . Total Orders 2 | . . . . . . . . . . . . . . . . . . . . . . . . . 2 . . . . . . . EXPLORE 2 | . . . . . . . . . . . . . . . . . . . . . . . . . 2 . . . . . . . Ally Attacks 188 | . . . . . . . . . . . . . . 6 . . 109 19 15 . . . . . . 31 . 8 . . . . Total Damage 5081 | . . . . . . . . . . . . . . 189 . . 2577 626 652 . . . . . . 738 . 299 . . . . Kills 42 | . . . . . . . . . . . . . . . . . 24 4 2 . . . . . . 10 . 2 . . . . Allies Corrupted . | . . . . . . . . . . . . . . . . . . . . . . . . . . . . . . . . . Allies Melted 1 | . . . . . . . . . . . . . . . . . 1 . . . . . . . . . . . . . . . Intel | -11 -10 -10 -9 -9 -9 -8 -8 -8 -8 -8 -7 -7 -7 -7 -6 -6 -6 -6 -6 -5 -5 -4 -4 -4 -4 -4 -4 -3 -3 -2 -2 -1 ------- Run | Scr Mat Min Mat Min Exi Min Mat Gar Mat Gar Fac Low Low Dat Pro Fac Ext Cet Arc Fac DSF Fac Gar Fac Upp Upp War Pro Res Res Gar Acc Robot Analysis Total 1 | . 1 . . . . . . . . . . . . . . . . . . . . . . . . . . . . . . . Derelict Logs Recovered 11 | . . 2 . 1 . . . . . . . 2 1 . 2 . . . . . . . . . 1 2 . . . . . . Drone Launches 3 | . . . . . . . . . . . . . . . . . . . . . . . . . 3 . . . . . . . Drone Recoveries 2 | . . . . . . . . . . . . . . . . . . . . . . . . . 2 . . . . . . . Exploration | -11 -10 -10 -9 -9 -9 -8 -8 -8 -8 -8 -7 -7 -7 -7 -6 -6 -6 -6 -6 -5 -5 -4 -4 -4 -4 -4 -4 -3 -3 -2 -2 -1 ------------- Run | Scr Mat Min Mat Min Exi Min Mat Gar Mat Gar Fac Low Low Dat Pro Fac Ext Cet Arc Fac DSF Fac Gar Fac Upp Upp War Pro Res Res Gar Acc Turns Passed 15668 | 57 453 211 779 368 424 153 1445 567 267 604 856 719 617 336 651 513 2006 249 196 91 143 171 590 275 456 780 82 544 511 134 298 122 Spaces Moved 8303 | 36 289 174 331 212 265 88 794 344 151 305 511 491 383 145 362 243 787 97 75 53 57 71 204 114 188 387 51 277 185 81 200 352 Core 2 | 2 . . . . . . . . . . . . . . . . . . . . . . . . . . . . . . . . Treads 4262 | . . . 299 212 265 88 193 . . 143 313 . . 70 362 243 373 . 1 . 43 71 204 114 188 387 51 277 185 81 99 . Legs 529 | 34 289 174 32 . . . . . . . . . . . . . . . . . . . . . . . . . . . . . Wheels 3057 | . . . . . . . 601 344 151 162 198 491 383 75 . . 414 97 74 53 14 . . . . . . . . . . . Hover . | . . . . . . . . . . . . . . . . . . . . . . . . . . . . . . . . . Flight 453 | . . . . . . . . . . . . . . . . . . . . . . . . . . . . . . . 101 352 Fastest Speed 5 | 50 120 120 120 160 160 160 115 115 145 145 130 130 115 130 162 160 155 170 170 170 160 160 160 160 160 160 160 155 152 155 5 5 Average Speed 140 | 116 120 120 159 160 160 160 126 125 145 150 145 130 128 145 162 176 161 170 174 170 172 160 160 160 160 160 160 156 153 155 81 10 Slowest Speed 320 | 120 120 120 240 160 160 160 160 145 145 156 156 130 130 165 243 243 320 170 290 170 240 160 160 160 160 160 160 160 155 155 155 53 Overloaded Moves 28 | . . . . . . . . . . . . . . . . . . . . . . . . . . . . . . . 14 14 Propulsion Burnouts . | . . . . . . . . . . . . . . . . . . . . . . . . . . . . . . . . . Robots Hopped 2 | . . . . . . . . . . . . . . . . . . . . . . . . . . . . . . . . 2 Cave-ins Triggered . | . . . . . . . . . . . . . . . . . . . . . . . . . . . . . . . . . Exploration Rate (%) 39 | 4 53 51 39 37 70 22 76 71 22 53 17 71 46 79 63 6 72 48 77 2 69 2 34 5 47 48 10 53 6 2 33 11 Regions Visited 32 Branch Regions 15 Pre-discovered Areas 7 | . . 2 . 2 1 . . . . . . . . 1 . . . . . . . . . . . 1 . . . . . . Known Exits Taken 11 | . . . 1 . . . 1 . 1 . 1 . . . 1 1 . . 1 1 . 1 . . 1 . . . . 1 . . Unknown Exits Taken 16 | 1 1 1 . 1 1 1 . . . . . 1 1 1 . . 1 1 . . . . . 1 . 1 1 1 1 . . . Scrap Searched 15 | . . 1 . . . . . . . . . 1 1 . 5 . . . . . . . . . 1 4 . 2 . . . . Spaces Dug 30 | . . . . . . . 6 . 1 . 5 . . . . . 13 . . . . 2 . . . . . . 3 . . . Terrain Destroyed 151 | . . . . . . . 6 9 1 . 5 16 14 . 3 2 48 . 2 . 1 2 14 6 9 7 . 2 3 . 1 . Melee 17 | . . . . . . . 6 . 1 . 5 . . . . . . . . . . 2 . . . . . . 3 . . . Projectile 39 | . . . . . . . . . . . . . . . . 2 9 . 2 . 1 . . 6 9 7 . 2 . . 1 . AOE 95 | . . . . . . . . 9 . . . 16 14 . 3 . 39 . . . . . 14 . . . . . . . . . Terrain Rammed . | . . . . . . . . . . . . . . . . . . . . . . . . . . . . . . . . . Walls Destroyed . | . . . . . . . . . . . . . . . . . . . . . . . . . . . . . . . . . Machines Disabled . | . . . . . . . . . . . . . . . . . . . . . . . . . . . . . . . . . Actions | -11 -10 -10 -9 -9 -9 -8 -8 -8 -8 -8 -7 -7 -7 -7 -6 -6 -6 -6 -6 -5 -5 -4 -4 -4 -4 -4 -4 -3 -3 -2 -2 -1 --------- Run | Scr Mat Min Mat Min Exi Min Mat Gar Mat Gar Fac Low Low Dat Pro Fac Ext Cet Arc Fac DSF Fac Gar Fac Upp Upp War Pro Res Res Gar Acc Total 11237 | 48 343 176 492 226 266 94 1132 452 183 403 591 546 463 206 404 305 1356 178 123 54 88 120 371 192 273 501 52 353 384 89 343 430 Wait 1288 | 1 14 . 45 3 . 1 176 15 11 26 26 28 2 1 17 13 271 51 6 . . 26 92 61 21 52 2 41 171 1 76 38 Move 8271 | 35 288 173 330 211 264 87 794 343 151 304 510 490 382 144 361 242 786 96 74 52 57 71 203 113 187 386 50 276 184 81 199 347 Hop 2 | . . . . . . . . . . . . . . . . . . . . . . . . . . . . . . . . 2 Pick Up 197 | 6 4 2 21 . 1 . 26 . 1 1 6 1 4 6 6 11 25 10 6 1 5 5 7 5 3 15 . 4 2 1 9 3 Fast Attach 74 | 6 3 . 5 . . . 8 . 2 1 4 . 3 3 1 4 6 . 6 . 2 3 . 2 . 3 . 2 3 1 3 3 Attach 102 | . . . 3 . . . 3 1 . 3 2 1 2 10 4 2 16 4 5 1 3 2 8 . 10 3 . 2 2 2 9 4 Detach 33 | . . . 3 . . . 3 . . . 3 . 2 . 1 1 3 1 2 . . . . 1 . 1 . 1 1 1 5 4 Swap 125 | . 3 . 11 1 . 1 15 5 4 3 7 5 7 4 4 9 12 2 5 . 2 2 7 2 3 5 . 2 3 1 . . Drop 195 | . 4 1 23 1 1 1 29 2 3 2 9 1 10 1 . 13 9 10 8 . 10 5 4 1 . 5 . 5 1 1 31 4 Fire 587 | . 26 . 50 8 . 4 61 24 10 39 19 20 40 36 10 10 56 4 11 . 8 3 50 7 35 23 . 20 3 . 4 6 Melee 83 | . . . . . . . 17 . 1 . 5 . . 1 . . 42 . . . . 3 . . . . . . 13 . . 1 Ram . | . . . . . . . . . . . . . . . . . . . . . . . . . . . . . . . . . Kick 1 | . 1 . . . . . . . . . . . . . . . . . . . . . . . . . . . . . . . Crush 7 | . . . 1 2 . . . . . . . . . . . . 2 . . . 1 . . . . . . . 1 . . . Escape Stasis 135 | . . . . . . . . 62 . 24 . . . . . . 24 . . . . . . . . . . . . . 7 18 Rewire 137 | . . . . . . . . . . . . . 11 . . . 104 . . . . . . . 14 8 . . . . . . Trap . | . . . . . . . . . . . . . . . . . . . . . . . . . . . . . . . . . Miscellaneous . | . . . . . . . . . . . . . . . . . . . . . . . . . . . . . . . . . Route ------- -11/Scrapyard -10/Materials (discovered 2 exits: *Mat / [*Min]) -10/Mines -9/Materials (discovered 2 exits: *Mat / *Min) -9/Mines (discovered 3 exits: *Mat x2 / *Exi) -9/Exiles -8/Mines -8/Materials (discovered 5 exits: *Fac x3 / [*Sto] / Gar) -8/Garrison (discovered 3 exits: *Mat x3) -8/Materials -8/Garrison (discovered 3 exits: *Fac x3) -7/Factory (discovered 2 exits: *Low x2) -7/Lower Caves -7/Lower Caves (discovered 2 exits: Fac / *Dat) -7/Data Miner -6/Proximity Caves -6/Factory (discovered 3 exits: Fac / *Ext x2) -6/Extension (discovered 2 exits: *Fac / *Cet) -6/Cetus -6/Archives (discovered 3 exits: *Fac / [*Hub x2]) -5/Factory -5/DSF -4/Factory (discovered 2 exits: [Upp] / Gar) -4/Garrison -4/Factory -4/Upper Caves -4/Upper Caves (discovered 2 exits: *Res / [*War]) -4/Warlord -3/Proximity Caves -3/Research -2/Research -2/Garrison -1/Access To Epsilon Eridani History --------- Turn | Location | Event 19 | -11/Scrapyard | Discovered new exit (range 16) 58 | -11/Scrapyard | Entered Materials 241 | -10/Materials | Repaired Structural Scanner? 317 | -10/Materials | Build established: Mutant 355 | -10/Materials | Discovered new exit (range 12) 395 | -10/Materials | Discovered new exit (range 16) 511 | -10/Materials | Entered Mines 612 | -10/Mines | Learned location of Mines (-9) 652 | -10/Mines | Discovered new exit (range 9) 714 | -10/Mines | Assembled infested the area 719 | -10/Mines | Assisted by a Guerilla fighting off Assembled 722 | -10/Mines | Entered Materials 722 | -9/Materials | Evolved 2 slots: Propulsion x1, Utility x1 953 | -9/Materials | Discovered new exit (range 13) 1173 | -9/Materials | Identified exit to Mines 1501 | -9/Materials | Entered Mines 1522 | -9/Mines | Escorted by a lone wolf Derelict 1542 | -9/Mines | Learned location of Storage (-8) 1561 | -9/Mines | Deemed a non-threat by the Exiles lab entrance 1561 | -9/Mines | Discovered new exit (range 5) 1709 | -9/Mines | Discovered new exit (range 9) 1800 | -9/Mines | Discovered new exit (range 11) 1869 | -9/Mines | Entered Exiles 1913 | -9/Exiles | Met 8R-AWN 1935 | -9/Exiles | Met EX-HEX 1983 | -9/Exiles | Met EX-BIN 2007 | -9/Exiles | Aligned with FarCom system 2009 | -9/Exiles | Given EX-Vault access code 2045 | -9/Exiles | Opened EX-Vault 2062 | -9/Exiles | Found Superbattery 2093 | -9/Exiles | Warned to stay clear of 0b10 Research branches 2188 | -9/Exiles | Met EX-DEC 2215 | -9/Exiles | Learned location of Zion (-6) 2277 | -9/Exiles | Discovered new exit (range 12) 2293 | -9/Exiles | Left Exiles lab with Superbattery 2293 | -9/Exiles | Entered Mines 2434 | -8/Mines | Discovered new exit (range 5) 2446 | -8/Mines | Entered Materials 2446 | -8/Materials | Evolved 2 slots: Propulsion x1, Utility x1 2747 | -8/Materials | Build established: Scavenger-Mutant 2792 | -8/Materials | Repaired Hrd. Medium Armor Plating 2851 | -8/Materials | Discovered new exit (range 9) 3091 | -8/Materials | Discovered new exit (range 5) 3447 | -8/Materials | Discovered new exit (range 9) 3639 | -8/Materials | Discovered new exit (range 18) 3891 | -8/Materials | Identified exit to Garrison 3891 | -8/Materials | Entered Garrison 3940 | -8/Garrison | Triggered checkpoint 3996 | -8/Garrison | Destroyed 7 combat bots 4044 | -8/Garrison | Discovered new exit (range 8) 4217 | -8/Garrison | Discovered new exit (range 15) 4286 | -8/Garrison | Triggered checkpoint 4350 | -8/Garrison | Discovered new exit (range 15) 4379 | -8/Garrison | Installed Relay Interface Framework 4458 | -8/Garrison | Entered Materials 4725 | -8/Materials | Identified exit to Garrison 4725 | -8/Materials | Entered Garrison 4874 | -8/Garrison | Triggered checkpoint 4948 | -8/Garrison | Triggered checkpoint 4969 | -8/Garrison | Discovered new exit (range 15) 5066 | -8/Garrison | Triggered checkpoint 5164 | -8/Garrison | Discovered new exit (range 8) 5240 | -8/Garrison | Triggered checkpoint 5299 | -8/Garrison | Discovered new exit (range 10) 5322 | -8/Garrison | Expanded RIF knowledge: Hotswap 5329 | -8/Garrison | Entered Factory 5329 | -7/Factory | Evolved 2 slots: Utility x2 5623 | -7/Factory | Build established: Scavenger-Skirmisher 5877 | -7/Factory | Identified exit to Lower Caves 6185 | -7/Factory | Entered Lower Caves 6346 | -7/Lower Caves | Attracted the attention of an 0b10 checkpoint 6431 | -7/Lower Caves | Learned 4 Factory zone layouts 6472 | -7/Lower Caves | Build established: Mutant 6875 | -7/Lower Caves | Discovered new exit (range 7) 6904 | -7/Lower Caves | Entered another Lower Caves area 6994 | -7/Lower Caves | Encountered a Warlord checkpoint 7111 | -7/Lower Caves | Attracted the attention of an 0b10 outpost 7490 | -7/Lower Caves | Discovered new exit (range 9) 7496 | -7/Lower Caves | Identified exit to Factory 7521 | -7/Lower Caves | Entered Data Miner 7521 | -7/Data Miner | Accompanied by 2 allies 7521 | -7/Data Miner | Discovered new exit (range 6) 7546 | -7/Data Miner | Met Data Miner 7568 | -7/Data Miner | Learned location of Section 7 (-3) 7568 | -7/Data Miner | Acquired the access code to Warlord's prototype stash 7588 | -7/Data Miner | Received God Mode back door access code from Data Miner 7611 | -7/Data Miner | Data Conduit disabled 7702 | -7/Data Miner | Core integrity fell below 50% 7722 | -7/Data Miner | Lost 11 parts (1p3n3u4w) 7857 | -7/Data Miner | Entered Proximity Caves 8077 | -6/Proximity Caves | Build established: Scavenger-Mutant 8181 | -6/Proximity Caves | Spotted B-75 Beast 8186 | -6/Proximity Caves | Learned Factory terminal intel 8304 | -6/Proximity Caves | Learned location of 1 exit from Factory 8373 | -6/Proximity Caves | Destroyed B-75 Beast 8446 | -6/Proximity Caves | Attracted the attention of an 0b10 checkpoint 8487 | -6/Proximity Caves | Discovered exit to Factory (range 9) 8504 | -6/Proximity Caves | System corruption reached 10% 8508 | -6/Proximity Caves | Entered Factory 8508 | -6/Factory | Evolved 2 slots: Power x1, Utility x1 8509 | -6/Factory | Identified exit to Extension 8511 | -6/Factory | Identified exit to Factory 8512 | -6/Factory | Loaded intel: 27 terminal locations 9021 | -6/Factory | Entered Extension 9673 | -6/Extension | Rescued a captive Derelict 9674 | -6/Extension | Rescued a captive Derelict 9707 | -6/Extension | Build established: Commander-Mutant 9749 | -6/Extension | Spotted B-75 Beast 9783 | -6/Extension | Spotted B-75 Beast 9811 | -6/Extension | Allies destroyed B-75 Beast 9832 | -6/Extension | Core integrity fell below 50% 9839 | -6/Extension | Destroyed B-75 Beast 9846 | -6/Extension | Core integrity fell below 20% 9874 | -6/Extension | Lost 16 parts (2p4n4u6w) 10097 | -6/Extension | Build established: Mutant 10450 | -6/Extension | Build established: Scavenger-Mutant 10535 | -6/Extension | Rescued A7 10646 | -6/Extension | Disrupted transfer network 10981 | -6/Extension | Discovered exit to Factory (range 10) 10983 | -6/Extension | Discovered new exit (range 6) 11027 | -6/Extension | Entered Cetus 11027 | -6/Cetus | Accompanied by 7 allies (A7) 11032 | -6/Cetus | Acquired a Cetus Manufacturing Module code from A7 11070 | -6/Cetus | Spotted Cetus Guard 11070 | -6/Cetus | Spotted Cetus Guard 11080 | -6/Cetus | Allies destroyed Cetus Guard 11080 | -6/Cetus | Spotted Cetus Guard 11080 | -6/Cetus | Spotted Cetus Guard 11092 | -6/Cetus | Allies destroyed Cetus Guard 11093 | -6/Cetus | Destroyed Cetus Guard 11097 | -6/Cetus | Destroyed Cetus Guard 11193 | -6/Cetus | Started Cetus Manufacturing Module 11218 | -6/Cetus | Manufactured an Enhanced Grunt 11219 | -6/Cetus | Discovered new exit (range 16) 11243 | -6/Cetus | Manufactured an Enhanced Grunt 11268 | -6/Cetus | Manufactured an Enhanced Grunt 11276 | -6/Cetus | Entered Archives 11276 | -6/Archives | Accompanied by 4 allies (A7) 11358 | -6/Archives | Discovered new exit (range 16) 11386 | -6/Archives | Discovered new exit (range 16) 11419 | -6/Archives | Discovered exit to Factory (range 14) 11449 | -6/Archives | System corruption reached 10% 11472 | -6/Archives | Entered Factory 11472 | -5/Factory | Evolved 2 slots: Propulsion x1, Utility x1 11563 | -5/Factory | Identified exit to DSF 11563 | -5/Factory | Entered DSF 11605 | -5/DSF | Additional patrols routed to DSF 11653 | -5/DSF | Discovered new exit (range 15) 11706 | -5/DSF | Entered Factory 11706 | -4/Factory | Evolved 2 slots: Propulsion x1, Utility x1 11737 | -4/Factory | Discovered new exit (range 10) 11877 | -4/Factory | Identified exit to Garrison 11877 | -4/Factory | Entered Garrison 11892 | -4/Garrison | Triggered checkpoint 11944 | -4/Garrison | Triggered checkpoint 11977 | -4/Garrison | Triggered checkpoint 12019 | -4/Garrison | Garrison Relay disabled 12248 | -4/Garrison | Triggered checkpoint 12248 | -4/Garrison | Triggered checkpoint 12305 | -4/Garrison | Lost 4 parts (1n3u) 12430 | -4/Garrison | Discovered new exit (range 14) 12460 | -4/Garrison | Expanded RIF knowledge: Threat Obfuscation 12467 | -4/Garrison | Entered Factory 12658 | -4/Factory | Discovered new exit (range 14) 12742 | -4/Factory | Entered Upper Caves 12805 | -4/Upper Caves | Destroyed 8 combat bots 12808 | -4/Upper Caves | Lost 4 parts (1n1u2w) 12909 | -4/Upper Caves | Identified exit to Upper Caves 12912 | -4/Upper Caves | Attracted the attention of an 0b10 outpost 12990 | -4/Upper Caves | Lost 6 parts (1p4u1w) 13198 | -4/Upper Caves | Entered another Upper Caves area 13198 | -4/Upper Caves | Accompanied by 2 allies 13221 | -4/Upper Caves | Learned Research stockpile data 13322 | -4/Upper Caves | A Commander dispatched an escort 13328 | -4/Upper Caves | Learned location of Testing (-2) 13331 | -4/Upper Caves | Learned location of 1 exit from Factory 13331 | -4/Upper Caves | Learned Armory emergency access door positions 13331 | -4/Upper Caves | Learned Extension stockpile data 13331 | -4/Upper Caves | Learned Extension terminal intel 13331 | -4/Upper Caves | Learned Research garrison access intel 13331 | -4/Upper Caves | Learned Extension garrison access intel 13339 | -4/Upper Caves | Discovered new exit (range 16) 13565 | -4/Upper Caves | Attracted the attention of an 0b10 checkpoint 13626 | -4/Upper Caves | Attracted the attention of an 0b10 outpost 13950 | -4/Upper Caves | Discovered new exit (range 7) 13978 | -4/Upper Caves | Entered Warlord 13978 | -4/Warlord | Accompanied by 2 allies 14039 | -4/Warlord | Discovered new exit (range 15) 14060 | -4/Warlord | Entered Proximity Caves 14060 | -3/Proximity Caves | Accompanied by 2 allies 14441 | -3/Proximity Caves | Attracted the attention of an 0b10 checkpoint 14558 | -3/Proximity Caves | Spotted B-86 Titan 14585 | -3/Proximity Caves | Discovered new exit (range 13) 14604 | -3/Proximity Caves | Entered Research 14604 | -3/Research | Evolved 2 slots: Utility x2 14606 | -3/Research | Loaded intel: 2 garrison access locations 15096 | -3/Research | Discovered new exit (range 14) 15115 | -3/Research | Entered another Research area 15115 | -2/Research | Evolved 2 slots: Utility x2 15249 | -2/Research | Identified exit to Garrison 15249 | -2/Research | Entered Garrison 15537 | -2/Garrison | Triggered checkpoint 15539 | -2/Garrison | Triggered checkpoint 15546 | -2/Garrison | Discovered new exit (range 8) 15547 | -2/Garrison | Entered Access 15547 | -1/Access | Evolved 2 slots: Power x1, Utility x1 15653 | -1/Access | Spotted B-99 Colossus 15653 | -1/Access | Spotted B-99 Colossus 15667 | -1/Access | Discovered new exit (range 3) 15669 | *** | Escaped! Last Messages --------------- 15647_ Field strength at 10. 15648_ Field strength at 5. 15649_ Stasis field depleted. 15653_ Adv. Heat Sink destroyed. 15653_ Penetrated by Slug. 15653_ Slug penetrates Sealed Freight Elevator. 15653_ Slug penetrates Sealed Heavy Doors. 15656_ Adv. Surge Thruster destroyed. 15656_ Slug penetrates Sealed Heavy Doors. 15656_ Penetrated by Slug. 15656_ Slug penetrates Sealed Heavy Doors. 15656_ Penetrated by Slug. 15656_ Slug penetrates Sealed Heavy Doors. 15661_ Dropped Power Sword. 15661_ U-05 Engineer builds a Wall. 15666_ Main Access Shell breached. 15667_ EXIT=FOUND 15667_ Slug penetrates Sealed Heavy Doors. 15667_ Adv. Reaction Control System destroyed. 15667_ Slug penetrates Sealed Heavy Doors. Map ----- +----------------------------------------------------+ | ?????????????????????????????????????????????????? | | ?????????????????????????????????????????????????? | | ?????????????????????????????????????????????????? | | ?????????????????????????????????????????????????? | | ?????????????????????????????????????????????????? | | ?????????????????????????????????????????????????? | | ?????????????????????????????????????????????????? | | ?????????????????????????????????????? ?????????? | | ?????????????????????????????????????? ?????????? | | ?????????????????????????????????????? #????????? | | ?????????????????????????????????????? #????????? | | ?????????????????????????????????????? #????????? | | ?????????????????????????????????????? #????????? | | ?????????????????????????????????????? #????????? | | ?????????????????????????????????????? #????????? | | ?????????????????????????????????????? +????????? | | ?????????????????????????????????????? #????????? | | ?????????????????????????????????????# #????????? | | ?????????????????????????????????????# #????????? | | ?????????????????????????????????????# #????????? | | ?????????#########??##########"####### #????????? | | ?????????# "??" " #????????? | | ?????????# "??" " #????????? | | ######+### "??" """""" " #????????? | | BB%"""" " " " #????????? | | BB% %/ "@ " #????????? | | BB " "" " "" " #????????? | | """" " " " #????????? | | ######+### "??" """""" " #????????? | | # "??" """" """ #????????? | | # "??" """"T""" #????????? | | #########??##########"####### #????????? | | #???????????????????????????# w#????????? | | "" #???????????????????????????# #????????? | | "" #???????????????????????????# #????????? | | "" #???????????????????????????# #????????? | | "" #???????????????????????????# #????????? | | "" #??????###################### ######+### | | "" ######## | | + ^ | | ########+#################### ### | | ##########????? ????????# # #?? | | ????????????? ???????# # #?? | | ???????????? ??????# + #?? | | ???????????# "" ????# # #?? | | ???????????# "" #???# # * #?? | | ???????????# """""" #???# # #?? | | ???????????# """""" #???# !! # #?? | | ???????????# "" ? #???# ! # #?? | | ???????????# "" #???# !] # #?? | +----------------------------------------------------+ Best States ------------- Heat Dissipation 93 Coolant Potential 65 Energy Generation 39 Energy Capacity 1700 Matter Stores 300 Matter Capacity 300 Sight Range 22 Terrain Scan Range 16 Terrain Scan Density 210 Jamming Range 14 Corruption Containment 8 Armor Coverage 900 Resistance: KI 25 Resistance: EM 25 Power Shielding 66 Evasion (%) 79 Targeting Accuracy 8 Target Analysis 8 Core Analysis 6 Recoil Reduction 6 Particle Charging 25 Salvage Targeting 1 Offensive Hacking 10 Relay Coupler Types 1 Relay Coupler Value 27 Item Schematics ----------------- Combat Drone Bay | -7/Data Miner | Free Lgt. Regenerative Plating | -7/Data Miner | Free Cld. Aerolev Unit | -7/Data Miner | Free Thermal Defense Suite | -7/Data Miner | Free Force Rifle | -7/Data Miner | Free Gyrokinetic Inverter | -7/Data Miner | Free Imp. Focal Shield | -7/Data Miner | Free Wave Gun | -7/Data Miner | Free Point Defense System | -7/Data Miner | Free Imp. Heavy Treads | -7/Data Miner | Free Robot Schematics ------------------ H-55 Commando | -7/Data Miner | Free A-15 Conveyor | -7/Data Miner | Free E-15 Imp | -7/Data Miner | Free O-24 Administrator | -7/Data Miner | Free Fabricated ------------ Nothing Alien Tech Used ----------------- None Achievements -------------- Speed Demon Supersonic Whoosh! Challenges ------------ None Game ------ Seed DeuteriumScanAccelerator Manual? 0 Play Time 04:55:01 Cumulative 147.2 hours Start 2022.03.17 @ 18:32:08 End 2022.04.12 @ 20:18:09 Sessions 19 Manual Loads 0 Difficulty Rogue Special Mode None Game No. 57 Rogue 57 Adventurer 0 Explorer 0 Win Type 0 Total 5 Types 4/0/0/1/0/0/0/0/0 Lore% 59 Gallery% 66 Achievement% 55 Wizard Run 0 Options --------- ASCII 1 Keyboard 1 Movement Vi Keybinds 0 Fullscreen 1 Font 20/CogTall Map View 98x62 Tactical HUD 1 Map Filters NONE Filters NONE Steam 1 RUN: 2eaf1e5f-e9d9-48a3-92c8-138a6cec39b0